Cogmind - Beta 15 @@@ ROGUE MODE // 2025.06.10 @ 15:19:39 Player: Singularius Result: Destroyed by Y-45 Defender with Beam Rifle Performance ------------- Evolutions (1) 500 Regions Visited (2) 400 Robots Destroyed (38) 190 Value Destroyed (617) 617 Prototype IDs (0) 0 Alien Tech Used (0) 0 Bonus (0) 0 TOTAL SCORE: 1707 Bonus ------- None Cogmind --------- Core Integrity 0/400 Matter 254/300 Energy 238/265 System Corruption 0% Temperature Cool (42) Movement Flying (194) Ox2 Location -9/Materials Parts ------- > --- POWER (1) -------- Improved Ion Engine > --- PROPULSION (4) --- Flight Unit Flight Unit Flight Unit > --- UTILITY (2) ------ Medium Storage Unit > --- WEAPON (2) ------- Minigun Assault Cannon > --- INVENTORY (10) --- Light Treads Aluminum Leg Disposable Heat Sink Heavy Particle Cannon Heavy Particle Cannon Heavy Particle Cannon Minigun Assault Cannon Peak State ------------ > --- POWER ------------ Light Nuclear Core > --- PROPULSION ------- Aluminum Leg Aluminum Leg Wheel Wheel > --- UTILITY ---------- Medium Storage Unit Seismic Detector > --- WEAPON ----------- Heavy Particle Cannon Minigun > --- INVENTORY -------- Ion Engine Disposable Heat Sink Small Storage Unit Heavy Particle Cannon Heavy Particle Cannon Heavy Particle Cannon Minigun Minigun Assault Cannon Assault Cannon [Rating: 17] Favorites ----------- Power Light Nuclear Core Engine Improved Ion Engine Power Core Light Nuclear Core Propulsion Wheel Treads Light Treads Leg Aluminum Leg Wheel Wheel Flight Unit Flight Unit Utility Medium Storage Unit Device Seismic Detector Storage Medium Storage Unit Weapon Particle Gun Energy Gun Particle Gun Energy Cannon Heavy Particle Cannon Ballistic Gun Shotgun Ballistic Cannon Assault Cannon Build | -11 -10 -9 ------- Run | Yrd Mat Mat Slots Evolved 2 | . . 2 Power . | . . . Propulsion 2 | . . 2 Utility . | . . . Weapon . | . . . Parts Attached 31 | 6 9 16 Power 5 | 1 1 3 Engine 4 | 1 . 3 Core 1 | . 1 . Reactor . | . . . Propulsion 12 | 2 1 9 Treads 1 | . . 1 Leg 4 | . . 4 Wheel 3 | 2 1 . Hover . | . . . Flight 4 | . . 4 Utility 4 | 1 3 . Device 2 | . 2 . Storage 2 | 1 1 . Processor . | . . . Hackware . | . . . Protection . | . . . Artifact . | . . . Weapon 10 | 2 4 4 Energy Gun 3 | 1 2 . Energy Cannon 2 | . 1 1 Ballistic Gun 4 | 1 1 2 Ballistic Cannon 1 | . . 1 Launcher . | . . . Special Weapon . | . . . Impact Weapon . | . . . Slashing Weapon . | . . . Piercing Weapon . | . . . Special Melee Weapon . | . . . Unidentified Prototypes . | . . . Parts Lost 11 | . 1 10 Power 2 | . . 2 Propulsion 6 | . . 6 Utility . | . . . Weapon 3 | . 1 2 Highest Loss Streak 7 | . 1 7 To Critical Strikes 1 | . . 1 Average Backups 8 | 2 7 9 Power . | . 1 . Propulsion 1 | 1 1 . Utility 1 | . . 1 Weapon 5 | . 4 6 Tool/Special . | . . . Unused Backups 15 | . 3 12 Power 1 | . 1 . Propulsion 1 | . 1 . Utility 1 | . . 1 Weapon 12 | . 1 11 Tool/Special . | . . . Average Slot Usage (%) 90 | . 96 84 Engine 4 | . 4 4 Core 7 | . 9 6 Leg 7 | . . 14 Wheel 20 | . 28 13 Flight 3 | . . 7 Device 7 | . 10 4 Storage 12 | . 14 11 Energy Gun 8 | . 14 1 Energy Cannon 6 | . 2 10 Ballistic Gun 8 | . 11 5 Ballistic Cannon 1 | . . 3 Peak Build Rating 17 | 6 12 17 Average Rating 12 | 4 10 14 On Entrance 6 | . 6 12 Naked Turns . | . . . Heaviest Build 28 | 14 23 28 Greatest Support 26 | 26 26 20 Greatest Overweight (x) 9 | . 1 9 Average Overweight (x) . | . . 1 Largest Inventory Capacity 10 | 8 10 10 Average Capacity 9 | 6 8 10 Most Carried 10 | 4 10 10 Average Carried 8 | 2 8 9 Final Capacity 10 | 8 10 10 Final Carried 9 | 4 9 8 Class Distribution -------------------- 89% | Mutant 10% | Scavenger-Mutant Dominant Class ---------------- Mutant | -10/Materials Mutant | -9/Materials Resources | -11 -10 -9 ----------- Run | Yrd Mat Mat Matter Collected 757 | 183 291 283 Remotely . | . . . Salvage Created 930 | . 496 434 Parts 77 | . 37 40 Haulers Intercepted 2 | . 2 . Recyclers Shooed . | . . . Parts Field Recycled . | . . . Retrieved Matter . | . . . Parts Self-Destructed . | . . . Prevented . | . . . Kills | -11 -10 -9 ------- Run | Yrd Mat Mat Combat Hostiles Destroyed 26 | . 9 17 Guns 14 | . 9 5 Cannons 11 | . . 11 Classes Destroyed 9 | . 7 2 Worker 3 | . 2 1 Builder 3 | . 3 . Hauler 2 | . 2 . Recycler 1 | . 1 . Operator 1 | . . 1 Watcher 2 | . 2 . Swarmer 18 | . 6 12 Grunt 5 | . 3 2 Sentry 3 | . . 3 Best Kill Streak 6 | . 5 6 Combat Bots Only 6 | . 3 6 Max Kills in Single Turn 2 | . 2 2 Gunslinging . | . . . Exploded . | . . . Melee . | . . . Uniques/NPCs Destroyed . | . . . Combat | -11 -10 -9 -------- Run | Yrd Mat Mat Hostile Shots Fired 237 | . 40 197 Missed 47 | . 9 38 Hits 190 | . 31 159 Projectile 190 | . 31 159 Critical Strikes 5 | . . 5 Damage Taken 1761 | . 338 1423 Core 522 | . 117 405 Absorbed by Shields . | . . . Core Remaining (%) 76 | 100 53 . Volleys Fired 72 | . 32 40 Largest 2 | . 2 2 Hottest 121 | . 121 121 Shots Fired 144 | . 64 80 Gun 90 | . 63 27 Cannon 54 | . 1 53 Launcher . | . . . Special . | . . . Kinetic 76 | . 31 45 Thermal 66 | . 32 34 Explosive . | . . . Electromagnetic 2 | . 1 1 Robot Hit Streak 9 | . 9 7 Robot Miss Streak 7 | . 7 7 Penetration Max . | . . . Secondary Targets 1 | . 1 . Max Gunslinging Chain 1 | . 1 . Shots Hit Robots 79 | . 38 41 Core Hits 46 | . 25 21 Critical Kills 1 | . . 1 Critical Parts Destroyed . | . . . Critical Strikes 4 | . 1 3 Burn 1 | . 1 . Meltdown 1 | . . 1 Blast 2 | . . 2 Melee Attacks . | . . . Impact . | . . . Slashing . | . . . Piercing . | . . . Sneak Attacks . | . . . Combat Hostiles . | . . . Follow-up Attacks . | . . . Damage Inflicted 1630 | . 645 985 Guns 845 | . 623 222 Cannons 763 | . . 763 Explosions 22 | . 22 . Melee . | . . . Ramming . | . . . Kinetic 837 | . 343 494 Thermal 771 | . 280 491 Explosive . | . . . Electromagnetic 22 | . 22 . Impact . | . . . Slashing . | . . . Piercing . | . . . Highest Corruption . | . . . Average Corruption . | . . . Corruption Purged . | . . . Corruption Blocked . | . . . Overload Shots . | . . . Overflow Damage 24 | . 1 23 Projectiles 23 | . . 23 Explosions 1 | . 1 . Melee . | . . . Knockbacks 2 | . . 2 Impact . | . . . Kinetic 2 | . . 2 Secondary . | . . . Self-Inflicted Damage 34 | . 34 . Shots 1 | . 1 . Rammed . | . . . Targets Rammed . | . . . Kicked . | . . . Crushed . | . . . Highest Temperature 322 | . 245 322 Average Temperature 114 | . 102 123 Received Heat Transfer 321 | . 90 231 Effects 2 | . . 2 Interference 1 | . . 1 Short Circuit 1 | . . 1 Siege Activations . | . . . Martial Activations . | . . . Shielding Activations . | . . . Robots Disrupted . | . . . Combat Hostiles . | . . . Robots Corrupted . | . . . Combat Hostiles . | . . . Parts Fried . | . . . Impact Corruptions . | . . . Robots Melted 1 | . . 1 Combat Hostiles 1 | . . 1 Parts Melted 2 | . . 2 Heat Transferred 1480 | . 740 740 Parts Sabotaged . | . . . Parts Stolen . | . . . Parts Stripped . | . . . Power Chain Reactions . | . . . Alert | -11 -10 -9 ------- Run | Yrd Mat Mat Maximum Alert Level 1 | . . 1 Low Security (%) 84 | 100 100 66 Level 1 15 | . . 33 Level 2 . | . . . Level 3 . | . . . Level 4 . | . . . Level 5 . | . . . High Security . | . . . Max Security . | . . . Peak Influence 325 | . 151 325 Initial 56 | . . 56 Average 114 | . 93 147 Influence Increases 949 | . 385 564 Destroy 0b10 Robot/C 520 | . 180 340 Destroy 0b10 Robot/NC 60 | . 50 10 Destroy Leader 118 | . 48 70 Successful Hack 4 | . . 4 Disable Machine 45 | . 15 30 Destroy Structure 22 | . 2 20 Partial Spotted 15 | . 15 . Lose Combat Pursuer 165 | . 75 90 Influence Decreases 678 | . 250 428 Entered New Map 79 | . . 79 Time Decay 489 | . 240 249 Lost Part 110 | . 10 100 Squads Dispatched 2 | . 2 . Investigation . | . . . Extermination . | . . . Reinforcement 2 | . 2 . Assault . | . . . Garrison . | . . . Intercept . | . . . Searches Triggered . | . . . Construction Impeded . | . . . Haulers Reinforced . | . . . Active Scanning Responses . | . . . Cargo Convoy Interrupts . | . . . Stealth | -11 -10 -9 --------- Run | Yrd Mat Mat Distress Signals 7 | . 4 3 Communications Jammed . | . . . Distress Signals . | . . . Times Spotted 53 | . 20 33 Peak Tracking Total 10 | . 4 10 Tactical Retreats 8 | . 4 4 Traps | -11 -10 -9 ------- Run | Yrd Mat Mat Traps Triggered 1 | . 1 . Indirectly 1 | . 1 . Trap Hack Attempts . | . . . Triggered . | . . . Disarmed . | . . . Reprogrammed . | . . . Reused . | . . . Traps Extracted . | . . . Installed . | . . . Triggered . | . . . Machines | -11 -10 -9 ---------- Run | Yrd Mat Mat Machines Disabled 3 | . 1 2 Max in Single Turn 1 | . 1 1 Machines Repaired . | . . . Machines Dismantled . | . . . Machines Sabotaged . | . . . Overloaded Fab Kills . | . . . Hacking | -11 -10 -9 --------- Run | Yrd Mat Mat Machines Accessed 8 | . 5 3 Terminals 6 | . 3 3 Fabricators . | . . . Repair Stations . | . . . Recycling Units 2 | . 2 . Scanalyzers . | . . . Garrison Access . | . . . Total Hacks 11 | . 6 5 Successful 3 | . 2 1 Failed 8 | . 4 4 Catastrophic 1 | . . 1 Database Lockouts . | . . . Manual . | . . . Terminals 8 | . 3 5 Fabricators . | . . . Repair Stations . | . . . Recycling Units 3 | . 3 . Scanalyzers . | . . . Garrison Access . | . . . Terminal Hacks 3 | . 2 1 Locate Traps 3 | . 2 1 Fabricator Hacks . | . . . Repair Station Hacks . | . . . Recycling Unit Hacks . | . . . Scanalyzer . | . . . Garrison Access Hacks . | . . . Unauthorized Hacks . | . . . Terminals . | . . . Fabricators . | . . . Repair Stations . | . . . Recycling Units . | . . . Scanalyzers . | . . . Garrison Access . | . . . Data Cores Recovered 1 | . . 1 Used . | . . . Hacking Detections 5 | . 2 3 Full Trace Events . | . . . Feedback Events . | . . . Feedback Blocked . | . . . Robot Schematics Acquired . | . . . Robots Built . | . . . Authchips . | . . . Time . | . . . Total Robot Build Rating . | . . . Part Schematics Acquired . | . . . Parts Built . | . . . Authchips . | . . . Time . | . . . Total Part Build Rating . | . . . Parts Repaired . | . . . Time . | . . . Parts Recycled . | . . . Recycled Matter . | . . . Retrieved Matter . | . . . Retrieved Components . | . . . Parts Scanalyzed . | . . . Part Schematics Acquired . | . . . Parts Damaged . | . . . Bothacking | -11 -10 -9 ------------ Run | Yrd Mat Mat Used RIF Installer . | . . . Robots Hacked . | . . . Non-combat . | . . . Combat . | . . . Robot Hacks Applied . | . . . Relay Couplers Released . | . . . Fabnet Peak Effective % . | . . . Robots Rewired . | . . . Allies Hacked . | . . . Hacks Repelled . | . . . Allies | -11 -10 -9 -------- Run | Yrd Mat Mat Total Allies . | . . . Largest Group . | . . . Highest-Rated Group . | . . . Highest-Rated Ally . | . . . Total Orders . | . . . Ally Attacks . | . . . Total Damage . | . . . Kills . | . . . Allies Corrupted . | . . . Allies Melted . | . . . Intel | -11 -10 -9 ------- Run | Yrd Mat Mat Active Infowar (turns) 673 | . 461 212 Terrain 262 | . 262 . Seismic 411 | . 199 212 Robot Analysis Total . | . . . Derelict Logs Recovered . | . . . Drone Launches . | . . . Drone Recoveries . | . . . Exploration | -11 -10 -9 ------------- Run | Yrd Mat Mat Turns Passed 1196 | 44 598 554 Spaces Moved 846 | 36 471 339 Core 6 | 3 . 3 Treads 4 | . . 4 Legs 8 | . . 8 Wheels 763 | 33 471 259 Hover . | . . . Flight 65 | . . 65 Fastest Speed 50 | 50 80 95 Average Speed 98 | 85 88 112 Slowest Speed 550 | 90 95 550 Overloaded Moves . | . . . Propulsion Burnouts . | . . . Robots Hopped . | . . . Potential Cave-ins . | . . . Cave-ins Triggered . | . . . Exploration Rate (%) 42 | 4 76 47 Regions Visited 2 Branch Regions . Pre-discovered Areas . | . . . Known Exits Taken . | . . . Unknown Exits Taken 2 | 1 1 . Scrap Searched . | . . . Spaces Dug . | . . . Terrain Destroyed 17 | . . 17 Melee . | . . . Projectile 17 | . . 17 AOE . | . . . Terrain Rammed . | . . . Walls Destroyed . | . . . Machines Disabled . | . . . Actions | -11 -10 -9 --------- Run | Yrd Mat Mat Total 1077 | 45 589 443 Wait 77 | . 59 18 Move 844 | 35 470 339 Hop . | . . . Pick Up 30 | 4 11 15 Fast Attach 15 | 6 2 7 Attach 7 | . 1 6 Detach . | . . . Swap 10 | . 6 4 Drop 22 | . 8 14 Fire 72 | . 32 40 Melee . | . . . Ram . | . . . Kick . | . . . Crush . | . . . Escape Stasis . | . . . Rewire . | . . . Trap . | . . . Miscellaneous . | . . . Route ------- -11/Scrapyard -10/Materials (discovered 3 exits: *Mat x2 / [*Min]) -9/Materials (discovered 2 exits: [*Mat] / [*Min]) History --------- Turn | Location | Event 8 | -11/Scrapyard | Discovered new exit (range 16) 45 | -11/Scrapyard | Entered Materials 175 | -10/Materials | Discovered new exit (range 8) 297 | -10/Materials | Discovered new exit (range 13) 332 | -10/Materials | Build established: Mutant 565 | -10/Materials | Discovered new exit (range 13) 643 | -10/Materials | Entered another Materials area 643 | -9/Materials | Evolved 2 slots: Propulsion x2 773 | -9/Materials | Discovered new exit (range 10) 990 | -9/Materials | Core integrity fell below 50% 1017 | -9/Materials | Core integrity fell below 20% 1039 | -9/Materials | Lost 7 parts (1p5n1w) 1157 | -9/Materials | Discovered new exit (range 9) 1197 | -9/Materials | Destroyed by Y-45 Defender with Beam Rifle Last Messages --------------- K-01 Serf collects debris. Acquired Flight Unit. K-01 Serf collects debris. Acquired Flight Unit. K-01 Serf collects debris. Acquired 3 matter. Acquired 29 matter. K-01 Serf collects debris. Acquired 41 matter. Acquired 10 matter. Flight Unit destroyed. EXIT=FOUND Critical hit (Burn: +37). Hvy. Particle Cannon destroyed. Imp. Ion Engine destroyed. Critical hit (Burn: +37). Y-45 Defender destroyed. Acquired 38 matter. Acquired Imp. Ion Engine. Y-45 Defender Hvy. Assault Rifle blasted off. Map ----- +----------------------------------------------------+ | #?# ""????????????? ?????????????? | | ### "??????????????? ???????????????? | | ## ????????????????????????????????????? | | T #?###????????????????????????????????????? | | #????????????????????????????????????????? | | ##?#####??????????????????????????????????? | | #? ??????????????????????????????????? | | #? ??????????????????????????????????? | | # ! ???????????????????????????????????? | | # #?????????????????????????????????? | | ##????????????????????????????????????????? | | ##### ##??????????????????????????????????? | | ????????????????????????????????? | | ######????????????????????????????????????? | | #?????????????????????????????????????????? | | ######????????????????????????????????????? | | #????????????????????????????????????? | | %% ##################???????????????????? | | [[ ???????????????????? | | [[ ###########?????????? | | [[ #?????????? | | < #?????????? | | % % #?????????? | | ### ###;%######?????????? | | #####+####/####### # Y![ #??????????? | | # #?# # @ % #??????????? | | # """#?# # #??????????? | | # """#?# + #??????????? | | # """### ## #??????????? | | !!! # + ## != #?????????? | | !!! # """######### != ##?????????? | | !! # """#???????# == #??????????? | | # """#???????# #??????????? | | | # #???????##########??????????? | | ################???????????????????????????? | | ???????????????????????????????????????????? | | | | | | | | | | | | | | | | | | | | | | | | | | | | | +----------------------------------------------------+ Best States ------------- Heat Dissipation 28 Energy Generation 14 Energy Capacity 265 Matter Stores 300 Matter Capacity 300 Sight Range 16 Terrain Scan Range 14 Terrain Scan Density 10 Evasion (%) 44 Recoil Reduction 1 Item Schematics ----------------- None Robot Schematics ------------------ None Fabricated ------------ Nothing Repaired ---------- Nothing Alien Tech Used ----------------- None Achievements -------------- None Challenges ------------ None Game ------ Seed ChargeChromionBay Manual? 0 Play Time 00:21:39 Cumulative 46.6 hours Start 2025.06.10 @ 14:57:04 End 2025.06.10 @ 15:19:39 Sessions 1 Manual Loads 0 Difficulty Rogue Special Mode None Game No. 39 Rogue 39 Adventurer 0 Explorer 0 Win Type - Total 0 Types 0/0/0/0/0/0/0/0/0/0 Lore% 19 Gallery% 26 Achievement% 23 Wizard Run 0 Options --------- Layout 1 ASCII 0 Keyboard 0 Movement Numpad Keybinds 0 Fullscreen 1 Font 24/Smallcaps Map View 50x35 Zoom Use 0% Tactical HUD 0 Map Filters NONE Filters NONE Steam 1 RUN: 56fa3ee3-26da-496c-884d-1ecf3e2ddd38